fUSD/lending_fUSD_20250326
["ID","MTS","AMOUNT","RATE_DAILY","PERIOD"]
[356700650,1742989855586,-500.0,0.00041095,30]
[356700651,1742989855596,-500.0,0.00041095,30]
[356700652,1742989855605,-500.0,0.00041095,30]
[356700653,1742989855616,-500.0,0.00041095,30]
[356700654,1742989855625,-500.0,0.00041095,30]
[356700655,1742989855635,-617.82276327,0.00041095,30]
[356700656,1742989855645,-500.0,0.00041095,30]
[356700657,1742989855730,-500.0,0.00041095,30]
[356700658,1742989855740,-519.03054533,0.00041095,30]
[356700659,1742989855749,-500.0,0.00041095,30]
[356700660,1742989855759,-519.04047935,0.00041095,30]
[356700661,1742989855769,-500.0,0.00041095,30]
[356700662,1742989855779,-549.11678686,0.00041095,30]
[356700663,1742989855789,-509.70624311,0.00041095,30]
[356700664,1742989855799,-500.0,0.00041095,30]
[356700665,1742989855810,-531.57227486,0.00041095,30]
[356700666,1742989855819,-500.0,0.00041095,30]
[356700667,1742989855828,-500.0,0.00041095,30]
[356700668,1742989855838,-500.0,0.00041095,30]
[356700669,1742989855848,-500.0,0.00041095,30]
[356700670,1742989855857,-500.0,0.00041095,2]
[356700671,1742989855867,-500.0,0.00041095,30]
[356700672,1742989855876,-500.0,0.00041095,30]
[356700673,1742989855886,-500.0,0.00041095,30]
[356700674,1742989855896,-500.0,0.00041095,30]
[356700675,1742989855906,-537.75387421,0.00041095,30]
[356700676,1742989855916,-500.0,0.00041095,30]
[356700677,1742989855926,-500.0,0.00041095,30]
[356700678,1742989855935,-500.0,0.00041095,30]
[356700679,1742989855947,-500.0,0.00041095,30]
[356700680,1742989855958,-500.0,0.00041095,30]
[356700681,1742989855968,-533.38261108,0.00041095,30]
[356700682,1742989855978,-500.0,0.00041095,30]
[356700683,1742989855987,-500.0,0.00041095,30]
[356700684,1742989855998,-500.0,0.00041095,30]
[356700685,1742989856008,-760.20714065,0.00041095,28]
[356700686,1742989856018,-545.7913932,0.00041095,30]
[356700687,1742989856028,-500.0,0.00041095,30]
[356700688,1742989856039,-500.0,0.00041095,30]
[356700689,1742989856049,-611.97885653,0.00041095,30]
[356700690,1742989856059,-500.0,0.00041095,30]
[356700691,1742989856068,-500.0,0.00041095,30]
[356700692,1742989856078,-500.0,0.00041095,30]
[356700693,1742989856090,-500.0,0.00041095,30]
[356700694,1742989856099,-500.0,0.00041095,30]
[356700695,1742989856109,-500.0,0.00041095,30]
[356700696,1742989856119,-500.0,0.00041095,30]
[356700697,1742989856130,-500.0,0.00041095,30]
[356700698,1742989856139,-500.0,0.00041095,30]
[356700699,1742989856149,-500.0,0.00041095,30]
[356700700,1742989856158,-500.0,0.00041095,30]
[356700701,1742989856169,-500.0,0.00041095,30]
[356700702,1742989856179,-500.0,0.00041095,30]
[356700703,1742989856189,-519.97913422,0.00041095,30]
[356700704,1742989856199,-253.45723711,0.00041095,30]
[356700705,1742989856208,-500.0,0.00041095,30]
[356700706,1742989856218,-500.0,0.00041095,30]
[356700707,1742989856228,-500.0,0.00041095,30]
[356700708,1742989856237,-500.0,0.00041095,30]
[356700709,1742989856246,-500.0,0.00041095,30]
[356700710,1742989856256,-500.0,0.00041095,30]
[356700711,1742989856271,-500.0,0.00041095,30]
[356700712,1742989856289,-500.0,0.00041095,30]
[356700713,1742989856307,-500.0,0.00041095,30]
[356700714,1742989856328,-500.0,0.00041095,30]
[356700715,1742989856346,-500.0,0.00041095,30]
[356700716,1742989856363,-514.62337496,0.00041095,30]
[356700717,1742989856381,-500.0,0.00041095,30]
[356700718,1742989856399,-500.0,0.00041095,30]
[356700719,1742989856417,-500.0,0.00041095,30]
[356700720,1742989856435,-545.69820588,0.00041095,30]
[356700721,1742989856452,-500.0,0.00041095,30]
[356700722,1742989856470,-504.78933057,0.00041095,30]
[356700723,1742989856484,-500.0,0.00041095,30]
[356700724,1742989856503,-500.0,0.00041095,30]
[356700725,1742989856517,-528.38998392,0.00041095,30]
[356700726,1742989856534,-500.0,0.00041095,30]
[356700727,1742989856550,-509.57598452,0.00041095,30]
[356700728,1742989856564,-500.0,0.00041095,30]
[356700729,1742989856580,-500.0,0.00041095,30]
[356700730,1742989856595,-538.84068956,0.00041095,30]
[356700731,1742989856609,-508.21318873,0.00041095,30]
[356700732,1742989856624,-500.0,0.00041095,30]
[356700733,1742989856638,-500.0,0.00041095,30]
[356700734,1742989856652,-500.0,0.00041095,30]
[356700735,1742989856666,-528.700956,0.00041095,30]
[356700736,1742989856681,-540.8931288,0.00041095,30]
[356700737,1742989856695,-508.67282078,0.00041095,30]
[356700738,1742989856709,-150.0,0.00041095,30]
[356700739,1742989856723,-500.0,0.00041095,30]
[356700740,1742989856738,-500.0,0.00041095,30]
[356700741,1742989856753,-500.0,0.00041095,30]
[356700742,1742989856767,-500.0,0.00041095,30]
[356700743,1742989856786,-500.0,0.00041095,30]
[356700744,1742989856803,-500.0,0.00041095,30]
[356700745,1742989856822,-518.83661927,0.00041095,30]
[356700746,1742989856842,-500.0,0.00041095,30]
[356700747,1742989856859,-500.0,0.00041095,30]
[356700748,1742989856876,-289.74347538,0.00041095,30]
[356700749,1742989856892,-500.0,0.00041095,30]
[356700750,1742989856908,-5041.95242919,0.00041095,30]
[356700751,1742989856924,-593.89164982,0.00041095,30]
[356700752,1742989856940,-434.15110323,0.00041095,30]
[356700753,1742989856955,-500.0,0.00041095,30]
[356700754,1742989856970,-500.0,0.00041095,30]
[356700755,1742989856983,-500.0,0.00041095,30]
[356700756,1742989856998,-502.87058041,0.00041095,30]
[356700757,1742989857013,-526.94409123,0.00041095,30]
[356700758,1742989857027,-500.0,0.00041095,30]
[356700759,1742989857041,-500.0,0.00041095,30]
[356700760,1742989857055,-497.21082531,0.00041095,30]
[356700761,1742989857069,-632.92588362,0.00041095,30]
[356700762,1742989857083,-500.0,0.00041095,30]
[356700763,1742989857101,-500.0,0.00041095,30]
[356700764,1742989857110,-503.3625374,0.00041095,30]
[356700765,1742989857120,-500.0,0.00041095,30]
[356700766,1742989857131,-500.0,0.00041095,30]
[356700767,1742989857266,-500.0,0.00041095,30]
[356700768,1742989857287,-500.0,0.00041095,30]
[356700769,1742989857299,-500.0,0.00041095,30]
[356700770,1742989857309,-543.33862203,0.00041095,30]
[356700771,1742989857319,-500.0,0.00041095,30]
[356700772,1742989857328,-500.0,0.00041095,30]
[356700773,1742989857337,-500.0,0.00041095,30]
[356700774,1742989857346,-500.0,0.00041095,30]
[356700775,1742989857356,-500.0,0.00041095,30]
[356700776,1742989857365,-500.0,0.00041095,30]
[356700777,1742989857374,-500.0,0.00041095,30]
[356700778,1742989857383,-500.0,0.00041095,30]
[356700779,1742989857393,-500.0,0.00041095,30]
[356700780,1742989857402,-500.0,0.00041095,30]
[356700781,1742989857411,-500.0,0.00041095,30]
[356700782,1742989857421,-500.0,0.00041095,30]
[356700783,1742989857430,-516.20873766,0.00041095,30]
[356700784,1742989857440,-500.0,0.00041095,30]
[356700785,1742989857452,-500.0,0.00041095,30]
[356700786,1742989857461,-500.0,0.00041095,30]
[356700787,1742989857471,-514.25619518,0.00041095,30]
[356700788,1742989857481,-500.0,0.00041095,30]
[356700789,1742989857491,-500.0,0.00041095,30]
[356700790,1742989857501,-512.22715301,0.00041095,30]
[356700791,1742989857510,-786.66,0.00041095,30]
[356700792,1742989857520,-786.66,0.00041095,30]
[356700793,1742989857530,-786.66,0.00041095,30]
[356700794,1742989857539,-786.66,0.00041095,30]
[356700795,1742989857548,-786.66,0.00041095,30]
[356700796,1742989857557,-786.66,0.00041095,30]
[356700797,1742989857567,-786.66,0.00041095,30]
[356700798,1742989857577,-500.0,0.00041095,30]
[356700799,1742989857586,-504.68259331,0.00041095,30]
[356700800,1742989857596,-500.0,0.00041095,30]
[356700801,1742989857606,-786.66,0.00041095,30]
[356700802,1742989857615,-500.0,0.00041095,30]
[356700803,1742989857625,-786.66,0.00041095,30]
[356700804,1742989857635,-500.0,0.00041095,30]
[356700805,1742989857645,-786.66,0.00041095,30]
[356700806,1742989857654,-786.66,0.00041095,30]
[356700807,1742989857664,-786.66,0.00041095,30]
[356700808,1742989857674,-500.0,0.00041095,30]
[356700809,1742989857684,-500.0,0.00041095,30]
[356700810,1742989857695,-786.66,0.00041095,30]
[356700811,1742989857704,-786.66,0.00041095,30]
[356700812,1742989857714,-786.66,0.00041095,30]
[356700813,1742989857724,-786.66,0.00041095,30]
[356700814,1742989857733,-506.3310438,0.00041095,30]
[356700815,1742989857743,-500.0,0.00041095,30]
[356700816,1742989857753,-500.0,0.00041095,30]
[356700817,1742989857763,-500.0,0.00041095,30]
[356700818,1742989857773,-500.0,0.00041095,30]
[356700819,1742989857782,-500.0,0.00041095,30]
[356700820,1742989857792,-500.0,0.00041095,30]
[356700821,1742989857802,-500.0,0.00041095,30]
[356700822,1742989857812,-524.65572899,0.00041095,30]
[356700823,1742989857821,-518.3477855,0.00041095,30]
[356700824,1742989857831,-500.0,0.00041095,30]
[356700825,1742989857840,-500.0,0.00041095,30]
[356700826,1742989857850,-500.0,0.00041095,30]
[356700827,1742989857860,-500.0,0.00041095,30]
[356700828,1742989857869,-500.0,0.00041095,30]
[356700829,1742989857878,-500.0,0.00041095,30]
[356700830,1742989857888,-408.30571644,0.00041095,30]
[356700831,1742989857897,-500.0,0.00041095,30]
[356700832,1742989857907,-500.0,0.00041095,30]
[356700833,1742989857916,-500.0,0.00041095,30]
[356700834,1742989857926,-500.0,0.00041095,30]
[356700835,1742989857935,-573.00352043,0.00041095,30]
[356700836,1742989857946,-500.0,0.00041095,30]
[356700837,1742989857956,-500.0,0.00041095,30]
[356700838,1742989857965,-506.48456722,0.00041095,30]
[356700839,1742989857974,-500.0,0.00041095,30]
[356700840,1742989857983,-500.0,0.00041095,30]
[356700841,1742989857992,-500.0,0.00041095,30]
[356700842,1742989858002,-500.0,0.00041095,30]
[356700843,1742989858011,-500.0,0.00041095,30]
[356700844,1742989858021,-552.87796516,0.00041095,30]
[356700845,1742989858031,-500.0,0.00041095,30]
[356700846,1742989858040,-500.0,0.00041095,30]
[356700847,1742989858050,-500.0,0.00041095,30]
[356700848,1742989858060,-525.73025946,0.00041095,30]
[356700849,1742989858070,-1234.37,0.00041095,30]
[356700850,1742989858081,-528.40968269,0.00041095,30]
[356700851,1742989858095,-500.0,0.00041095,30]
[356700852,1742989858105,-500.0,0.00041095,30]
[356700853,1742989858114,-645.7522881,0.00041095,30]
[356700854,1742989858124,-513.06695117,0.00041095,30]
[356700855,1742989858135,-500.0,0.00041095,30]
[356700856,1742989858144,-500.0,0.00041095,30]
[356700857,1742989858154,-500.0,0.00041095,30]
[356700858,1742989858164,-779.98,0.00041095,30]
[356700859,1742989858174,-517.91239201,0.00041095,30]
[356700860,1742989858183,-500.0,0.00041095,30]
[356700861,1742989858194,-510.56455537,0.00041095,30]
[356700862,1742989858203,-500.0,0.00041095,30]
[356700863,1742989858213,-500.0,0.00041095,30]
[356700864,1742989858224,-500.0,0.00041095,30]
[356700865,1742989858233,-190.71451371,0.00041095,30]
[356700866,1742989858244,-500.0,0.00041095,30]
[356700867,1742989858253,-515.07545103,0.00041095,30]
[356700868,1742989858263,-500.0,0.00041095,30]
[356700869,1742989858273,-500.0,0.00041095,30]
[356700870,1742989858282,-504.63437325,0.00041095,30]
[356700871,1742989858291,-500.0,0.00041095,30]
[356700872,1742989858301,-500.0,0.00041095,30]
[356700873,1742989858310,-7474.69,0.00041095,2]
[356700874,1742989858320,-500.0,0.00041095,30]
[356700875,1742989858329,-500.0,0.00041095,30]
[356700876,1742989858339,-500.0,0.00041095,30]
[356700877,1742989858348,-525.84376036,0.00041095,30]
[356700878,1742989858358,-500.0,0.00041095,30]
[356700879,1742989858367,-500.0,0.00041095,30]
[356700880,1742989858377,-506.71985268,0.00041095,30]
[356700881,1742989858386,-500.0,0.00041095,30]
[356700882,1742989858396,-500.0,0.00041095,30]
[356700883,1742989858405,-500.0,0.00041095,30]
[356700884,1742989858415,-500.0,0.00041095,30]
[356700885,1742989858424,-500.0,0.00041095,30]
[356700886,1742989858434,-500.0,0.00041095,30]
[356700887,1742989858444,-500.0,0.00041095,30]
[356700888,1742989858453,-500.0,0.00041095,30]
[356700889,1742989858462,-552.88218969,0.00041095,30]
[356700890,1742989858472,-523.21628656,0.00041095,30]
[356700891,1742989858482,-525.80754098,0.00041095,30]
[356700892,1742989858492,-500.0,0.00041095,30]
[356700893,1742989858502,-500.0,0.00041095,30]
[356700894,1742989858511,-524.79756999,0.00041095,30]
[356700895,1742989858521,-523.72177107,0.00041095,30]
[356700896,1742989858530,-501.95312648,0.00041095,30]
[356700897,1742989858540,-511.6675672,0.00041095,30]
[356700898,1742989858550,-500.0,0.00041095,30]
[356700899,1742989858559,-500.0,0.00041095,30]
[356700900,1742989858569,-581.19121677,0.00041095,30]
[356700901,1742989858578,-578.22702036,0.00041095,30]
[356700902,1742989858589,-517.78206897,0.00041095,30]
[356700903,1742989858599,-557.94359476,0.00041095,30]
[356700904,1742989858609,-500.0,0.00041095,30]
[356700905,1742989858619,-500.0,0.00041095,30]
[356700906,1742989858629,-588.33171582,0.00041095,30]
[356700907,1742989858639,-527.81814515,0.00041095,30]
[356700908,1742989858650,-528.13256851,0.00041095,30]
[356700909,1742989858659,-500.0,0.00041095,30]
[356700910,1742989858669,-500.0,0.00041095,30]
[356700911,1742989858678,-500.0,0.00041095,30]
[356700912,1742989858688,-500.0,0.00041095,30]
[356700913,1742989858697,-535.90047285,0.00041095,30]
[356700914,1742989858707,-504.53982063,0.00041095,30]
[356700915,1742989858716,-500.0,0.00041095,30]
[356700916,1742989858726,-547.58044489,0.00041095,30]
[356700917,1742989858735,-473.02973654,0.00041095,30]
[356700918,1742989858745,-500.0,0.00041095,30]
[356700919,1742989858755,-500.0,0.00041095,30]
[356700920,1742989858764,-500.0,0.00041095,30]
[356700921,1742989858775,-500.0,0.00041095,30]
[356700922,1742989858784,-500.0,0.00041095,30]
[356700923,1742989858794,-529.765331,0.00041095,30]
[356700924,1742989858803,-1709.94,0.00041095,30]
[356700925,1742989858813,-524.29480396,0.00041095,30]
[356700926,1742989858822,-529.88134923,0.00041095,30]
[356700927,1742989858831,-5732.33,0.00041095,30]
[356700928,1742989858841,-508.79028239,0.00041095,30]
[356700929,1742989858850,-500.0,0.00041095,30]
[356700930,1742989858861,-550.40546023,0.00041095,30]
[356700931,1742989858869,-500.0,0.00041095,30]
[356700932,1742989858879,-520.54086842,0.00041095,30]
[356700933,1742989858888,-500.0,0.00041095,30]
[356700934,1742989858898,-510.69163159,0.00041095,30]
[356700935,1742989858907,-515.71497746,0.00041095,30]
[356700936,1742989858917,-504.63514251,0.00041095,30]
[356700937,1742989858927,-530.81207806,0.00041095,30]
[356700938,1742989858937,-555.20370835,0.00041095,30]
[356700939,1742989858946,-566.35,0.00041095,30]
[356700940,1742989858957,-518.57911966,0.00041095,30]
[356700941,1742989858966,-500.0,0.00041095,30]
[356700942,1742989858976,-510.43345757,0.00041095,30]
[356700943,1742989858985,-555.20004095,0.00041095,30]
[356700944,1742989858995,-902.11,0.00041095,30]
[356700945,1742989859004,-541.18480477,0.00041095,30]
[356700946,1742989859014,-500.0,0.00041095,30]
[356700947,1742989859023,-518.90451813,0.00041095,30]
[356700948,1742989859033,-500.0,0.00041095,30]
[356700949,1742989859042,-510.55603416,0.00041095,30]
[356700950,1742989859052,-516.41794672,0.00041095,30]
[356700951,1742989859061,-517.12248208,0.00041095,30]
[356700952,1742989859070,-530.64860732,0.00041095,30]
[356700953,1742989859080,-519.13095566,0.00041095,30]
[356700954,1742989859092,-500.0,0.00041095,30]
[356700955,1742989859191,-525.41857567,0.00041095,30]
[356700956,1742989859202,-500.0,0.00041095,30]
[356700957,1742989859211,-517.96679949,0.00041095,30]
[356700958,1742989859220,-517.79950054,0.00041095,30]
[356700959,1742989859230,-511.84590675,0.00041095,30]
[356700960,1742989859239,-500.0,0.00041095,30]
[356700961,1742989859249,-500.0,0.00041095,30]
[356700962,1742989859258,-500.0,0.00041095,30]
[356700963,1742989859267,-518.57308444,0.00041095,30]
[356700964,1742989859276,-551.96809126,0.00041095,30]
[356700965,1742989859285,-534.20232277,0.00041095,30]
[356700966,1742989859294,-517.92803656,0.00041095,30]
[356700967,1742989859303,-500.0,0.00041095,30]
[356700968,1742989859313,-523.40103687,0.00041095,30]
[356700969,1742989859322,-500.0,0.00041095,30]
[356700970,1742989859330,-1332.55,0.00041095,30]
[356700971,1742989859339,-516.89866336,0.00041095,30]
[356700972,1742989859349,-517.71258812,0.00041095,30]
[356700973,1742989859359,-500.0,0.00041095,30]
[356700974,1742989859368,-632.61013487,0.00041095,30]
[356700975,1742989859377,-169.70085129,0.00041095,30]
[356700976,1742989859387,-536.59186189,0.00041095,30]
[356700977,1742989859396,-500.0,0.00041095,30]
[356700978,1742989859406,-500.0,0.00041095,30]
[356700979,1742989859415,-500.0,0.00041095,30]
[356700980,1742989859424,-534.44,0.00041095,30]
[356700981,1742989859433,-500.0,0.00041095,30]
[356700982,1742989859443,-522.54750783,0.00041095,30]
[356700983,1742989859453,-500.0,0.00041095,30]
[356700984,1742989859462,-500.0,0.00041095,30]
[356700985,1742989859471,-543.20457582,0.00041095,30]
[356700986,1742989859481,-500.0,0.00041095,30]
[356700987,1742989859490,-500.0,0.00041095,30]
[356700988,1742989859500,-535.88193661,0.00041095,15]
[356700989,1742989859509,-501.47248387,0.00041095,30]
[356700990,1742989859518,-500.0,0.00041095,30]
[356700991,1742989859527,-537.09637229,0.00041095,30]
[356700992,1742989859538,-1162.51,0.00041095,30]
[356700993,1742989859547,-500.0,0.00041095,30]
[356700994,1742989859556,-500.0,0.00041095,30]
[356700995,1742989859565,-507.30330993,0.00041095,30]
[356700996,1742989859575,-511.36489587,0.00041095,30]
[356700997,1742989859584,-500.0,0.00041095,30]
[356700998,1742989859593,-500.0,0.00041095,30]
[356700999,1742989859603,-500.0,0.00041095,30]
[356701000,1742989859612,-519.31588746,0.00041095,30]
[356701001,1742989859622,-524.39554277,0.00041095,30]
[356701002,1742989859631,-500.0,0.00041095,30]
[356701003,1742989859640,-500.0,0.00041095,30]
[356701004,1742989859649,-500.0,0.00041095,30]
[356701005,1742989859658,-511.60840294,0.00041095,30]
[356701006,1742989859667,-512.47899781,0.00041095,30]
[356701007,1742989859677,-500.0,0.00041095,30]
[356701008,1742989859687,-518.92100133,0.00041095,30]
[356701009,1742989859697,-523.38789747,0.00041095,30]
[356701010,1742989859706,-500.0,0.00041095,30]
[356701011,1742989859715,-500.0,0.00041095,30]
[356701012,1742989859724,-514.86383992,0.00041095,30]
[356701013,1742989859734,-503.73776788,0.00041095,30]
[356701014,1742989859743,-500.0,0.00041095,30]
[356701015,1742989859752,-500.0,0.00041095,30]
[356701016,1742989859761,-539.93101424,0.00041095,30]
[356701017,1742989859771,-509.99436767,0.00041095,30]
[356701018,1742989859781,-536.88500431,0.00041095,30]
[356701019,1742989859790,-500.0,0.00041095,30]
[356701020,1742989859800,-500.0,0.00041095,30]
[356701021,1742989859809,-506.2402951,0.00041095,30]
[356701022,1742989859818,-500.0,0.00041095,30]
[356701023,1742989859828,-513.40506452,0.00041095,30]
[356701024,1742989859838,-5897.06,0.00041095,30]
[356701025,1742989859847,-516.97145286,0.00041095,30]
[356701026,1742989859856,-521.44151457,0.00041095,30]
[356701027,1742989859866,-2028.39579637,0.00041095,30]
[356701028,1742989859875,-510.12964294,0.00041095,30]
[356701029,1742989859884,-544.36722676,0.00041095,30]
[356701030,1742989859893,-500.0,0.00041095,30]
[356701031,1742989859902,-515.47017357,0.00041095,30]
[356701032,1742989859911,-500.0,0.00041095,30]
[356701033,1742989859922,-516.36271921,0.00041095,30]
[356701034,1742989859932,-504.76506419,0.00041095,30]
[356701035,1742989859943,-507.88159593,0.00041095,30]
[356701036,1742989859952,-503.73306586,0.00041095,30]
[356701037,1742989859962,-521.85933159,0.00041095,30]
[356701038,1742989859971,-500.0,0.00041095,30]
[356701039,1742989859980,-535.32943906,0.00041095,30]
[356701040,1742989859989,-518.25273443,0.00041095,30]
[356701041,1742989859999,-500.0,0.00041095,30]
[356701042,1742989860008,-500.0,0.00041095,30]
[356701043,1742989860018,-500.0,0.00041095,30]
[356701044,1742989860028,-511.30507198,0.00041095,30]
[356701045,1742989860037,-528.36893321,0.00041095,30]
[356701046,1742989860047,-500.0,0.00041095,30]
[356701047,1742989860057,-500.0,0.00041095,30]
[356701048,1742989860067,-518.23793431,0.00041095,30]
[356701049,1742989860077,-1000.0,0.00041095,30]
[356701050,1742989860088,-500.0,0.00041095,30]
[356701051,1742989860098,-500.0,0.00041095,30]
[356701052,1742989860108,-500.0,0.00041095,30]
[356701053,1742989860117,-535.36701306,0.00041095,30]
[356701054,1742989860127,-500.0,0.00041095,30]
[356701055,1742989860138,-500.0,0.00041095,30]
[356701056,1742989860147,-500.0,0.00041095,30]
[356701057,1742989860158,-500.0,0.00041095,30]
[356701058,1742989860168,-515.75501712,0.00041095,30]
[356701059,1742989860178,-500.0,0.00041095,30]
[356701060,1742989860187,-559.13413543,0.00041095,30]
[356701061,1742989860197,-505.93921696,0.00041095,30]
[356701062,1742989860206,-500.0,0.00041095,30]
[356701063,1742989860216,-509.78453392,0.00041095,30]
[356701064,1742989860226,-502.31953375,0.00041095,30]
[356701065,1742989860235,-511.2474575,0.00041095,30]
[356701066,1742989860245,-500.0,0.00041095,30]
[356701067,1742989860254,-500.0,0.00041095,30]
[356701068,1742989860264,-530.9060663,0.00041095,30]
[356701069,1742989860273,-500.0,0.00041095,30]
[356701070,1742989860282,-500.0,0.00041095,30]
[356701071,1742989860291,-505.10148621,0.00041095,30]
[356701072,1742989860300,-500.0,0.00041095,30]
[356701073,1742989860310,-500.0,0.00041095,30]
[356701074,1742989860319,-500.0,0.00041095,30]
[356701075,1742989860329,-530.8,0.00041095,30]
[356701076,1742989860338,-500.0,0.00041095,30]
[356701077,1742989860347,-521.1942972,0.00041095,30]
[356701078,1742989860357,-533.85944814,0.00041095,30]
[356701079,1742989860367,-522.62874396,0.00041095,30]
[356701080,1742989860376,-514.89755631,0.00041095,30]
[356701081,1742989860385,-500.0,0.00041095,30]
[356701082,1742989860395,-524.69184749,0.00041095,30]
[356701083,1742989860404,-500.0,0.00041095,30]
[356701084,1742989860414,-500.0,0.00041095,30]
[356701085,1742989860423,-500.0,0.00041095,30]
[356701086,1742989860432,-500.0,0.00041095,30]
[356701087,1742989860441,-1267.25,0.00041095,30]
[356701088,1742989860451,-506.14514525,0.00041095,30]
[356701089,1742989860461,-521.27159593,0.00041095,30]
[356701090,1742989860470,-508.5984568,0.00041095,30]
[356701091,1742989860480,-524.0743901,0.00041095,30]
[356701092,1742989860489,-541.72999328,0.00041095,30]
[356701093,1742989860498,-500.0,0.00041095,30]
[356701094,1742989860508,-500.0,0.00041095,30]
[356701095,1742989860517,-579.56962593,0.00041095,30]
[356701096,1742989860527,-506.94813715,0.00041095,30]
[356701097,1742989860536,-565.74328398,0.00041095,30]
[356701098,1742989860546,-502.65879153,0.00041095,30]
[356701099,1742989860555,-538.32893162,0.00041095,30]
[356701100,1742989860564,-500.0,0.00041095,30]
[356701101,1742989860573,-500.0,0.00041095,30]
[356701102,1742989860583,-501.63896346,0.00041095,30]
[356701103,1742989860593,-519.04338883,0.00041095,30]
[356701104,1742989860602,-500.0,0.00041095,30]
[356701105,1742989860612,-500.0,0.00041095,30]
[356701106,1742989860622,-500.0,0.00041095,30]
[356701107,1742989860631,-500.0,0.00041095,30]
[356701108,1742989860640,-502.72656896,0.00041095,30]
[356701109,1742989860650,-500.0,0.00041095,30]
[356701110,1742989860659,-643.00929742,0.00041095,30]
[356701111,1742989860669,-500.0,0.00041095,30]
[356701112,1742989860678,-63028.24,0.00041095,30]
[356701113,1742989860687,-500.0,0.00041095,30]
[356701114,1742989860698,-500.0,0.00041095,30]
[356701115,1742989860708,-517.52,0.00041095,30]
[356701116,1742989860717,-516.25622569,0.00041095,30]
[356701117,1742989860727,-512.56221359,0.00041095,30]
[356701118,1742989860737,-500.0,0.00041095,30]
[356701119,1742989860747,-513.93496955,0.00041095,30]
[356701120,1742989860756,-519.2809705,0.00041095,30]
[356701121,1742989860765,-500.0,0.00041095,30]
[356701122,1742989860775,-500.0,0.00041095,30]
[356701123,1742989860784,-514.29237699,0.00041095,30]
[356701124,1742989860793,-500.0,0.00041095,30]
[356701125,1742989860802,-508.52127216,0.00041095,30]
[356701126,1742989860811,-500.0,0.00041095,30]
[356701127,1742989860896,-531.69227391,0.00041095,30]
[356701128,1742989860915,-528.07492349,0.00041095,120]
[356701129,1742989860924,-500.0,0.00041095,15]
[356701130,1742989860933,-500.0,0.00041095,30]
[356701131,1742989860942,-521.99874565,0.00041095,30]
[356701132,1742989860952,-505.3560132,0.00041095,30]
[356701133,1742989860961,-500.0,0.00041095,30]
[356701134,1742989860970,-500.0,0.00041095,30]
[356701135,1742989860979,-590.32258176,0.00041095,30]
[356701136,1742989860989,-544.19783478,0.00041095,30]
[356701137,1742989860998,-515.02941831,0.00041095,30]
[356701138,1742989861007,-507.23281749,0.00041095,30]
[356701139,1742989861017,-621.03805793,0.00041095,30]
[356701140,1742989861026,-500.0,0.00041095,30]
[356701141,1742989861036,-500.0,0.00041095,30]
[356701142,1742989861045,-500.0,0.00041095,30]
[356701143,1742989861054,-500.0,0.00041095,30]
[356701144,1742989861064,-506.4206261,0.00041095,30]
[356701145,1742989861073,-500.0,0.00041095,30]
[356701146,1742989861082,-500.0,0.00041095,30]
[356701147,1742989861095,-500.0,0.00041095,30]
[356701148,1742989861104,-571.50643314,0.00041095,30]
[356701149,1742989861113,-544.30216521,0.00041095,30]